fUSD/lending_fUSD_20240215
["ID","MTS","AMOUNT","RATE_DAILY","PERIOD"]
[314134190,1708015857061,-500.0,0.0003863,7]
[314134191,1708015857070,-511.88163367,0.0003863,7]
[314134192,1708015857080,-515.41640257,0.0003863,7]
[314134193,1708015857090,-500.0,0.0003863,7]
[314134194,1708015857099,-525.16268876,0.0003863,7]
[314134195,1708015857108,-500.0,0.0003863,7]
[314134196,1708015857117,-197.17,0.0003863,7]
[314134197,1708015857127,-500.0,0.0003863,7]
[314134198,1708015857136,-500.0,0.0003863,7]
[314134199,1708015857146,-500.0,0.0003863,7]
[314134200,1708015857155,-525.55266546,0.0003863,7]
[314134201,1708015857164,-500.0,0.0003863,7]
[314134202,1708015857174,-373.29422254,0.0003863,7]
[314134203,1708015857183,-500.0,0.0003863,7]
[314134204,1708015857192,-731.67,0.0003863,7]
[314134205,1708015857203,-522.94404616,0.0003863,7]
[314134206,1708015857212,-500.0,0.0003863,7]
[314134207,1708015857223,-500.0,0.0003863,7]
[314134208,1708015857232,-513.77552284,0.0003863,7]
[314134209,1708015857243,-500.0,0.0003863,7]
[314134210,1708015857252,-500.0,0.0003863,7]
[314134211,1708015857261,-500.0,0.0003863,7]
[314134212,1708015857271,-500.0,0.0003863,7]
[314134213,1708015857280,-500.0,0.0003863,7]
[314134214,1708015857290,-500.0,0.0003863,7]
[314134215,1708015857299,-536.49,0.0003863,2]
[314134216,1708015857308,-500.0,0.0003863,7]
[314134217,1708015857318,-500.0,0.0003863,7]
[314134218,1708015857328,-500.0,0.0003863,7]
[314134219,1708015857338,-598.61435659,0.0003863,7]
[314134220,1708015857348,-318.05159909,0.0003863,7]
[314134221,1708015857360,-500.0,0.0003863,7]
[314134222,1708015857370,-517.02777696,0.0003863,7]
[314134223,1708015857379,-519.68785061,0.0003863,7]
[314134224,1708015857508,-532.22106102,0.0003863,7]
[314134225,1708015857520,-500.0,0.0003863,7]
[314134226,1708015857530,-500.0,0.0003863,7]
[314134227,1708015857539,-500.0,0.0003863,7]
[314134228,1708015857549,-500.0,0.0003863,7]
[314134229,1708015857558,-500.0,0.0003863,7]
[314134230,1708015857567,-500.0,0.0003863,7]
[314134231,1708015857577,-500.0,0.0003863,7]
[314134232,1708015857587,-500.0,0.0003863,7]
[314134233,1708015857596,-500.0,0.0003863,7]
[314134234,1708015857606,-500.0,0.0003863,7]
[314134235,1708015857616,-500.0,0.0003863,7]
[314134236,1708015857625,-500.0,0.0003863,7]
[314134237,1708015857635,-520.15005447,0.0003863,7]
[314134238,1708015857644,-500.0,0.0003863,7]
[314134239,1708015857653,-500.0,0.0003863,7]
[314134240,1708015857662,-500.0,0.0003863,7]
[314134241,1708015857671,-500.0,0.0003863,7]
[314134242,1708015857680,-500.0,0.0003863,2]
[314134243,1708015857692,-500.0,0.0003863,7]
[314134244,1708015857701,-516.47329608,0.0003863,7]
[314134245,1708015857711,-593.23707308,0.0003863,7]
[314134246,1708015857722,-513.5583782,0.0003863,7]
[314134247,1708015857730,-500.0,0.0003863,7]
[314134248,1708015857740,-500.0,0.0003863,7]
[314134249,1708015857749,-500.0,0.0003863,7]
[314134250,1708015857759,-500.0,0.0003863,7]
[314134251,1708015857768,-114.51951624,0.0003863,7]
[314134252,1708015871301,5547.22996271,0.0002509,2]
[314134253,1708015890968,10021.73969876,0.000281,2]
[314134254,1708016033174,158397.37759062,0.00023,2]
[314134255,1708016033202,101602.62240938,0.00023,2]
[314134256,1708016044045,478.49213711,0.00025,2]
[314134257,1708016047009,411.80364808,0.0002425,2]
[314134259,1708016061494,20189.73780512,0.000272,2]
[314134260,1708016063683,157.70454403,0.00018,2]
[314134261,1708016070040,1634.54335949,0.00025,30]
[314134262,1708016070091,2530.19705251,0.000232,2]
[314134263,1708016070182,150.0,0.0003,2]
[314134264,1708016095115,150.0,0.0003,2]
[314134265,1708016096479,150.0,0.0003,2]
[314134266,1708016097874,150.0,0.0003,2]
[314134267,1708016098192,150.0,0.0003,2]
[314134268,1708016098595,150.0,0.0003,2]
[314134269,1708016120662,196.9933696,0.0003,2]
[314134270,1708016877028,-296.47072073,0.000301,2]
[314134271,1708016877050,-651.12,0.00032116,2]
[314134272,1708016877069,-201.341146,0.00033,5]
[314134273,1708016877091,-157.0,0.00033,2]
[314134274,1708016877115,-170.5,0.00033813,2]
[314134275,1708016877137,-500.0,0.00033833,2]
[314134276,1708016877158,-23.56813327,0.00033833,2]
[314134277,1708016877900,-226.43186673,0.00033833,2]
[314134278,1708016877920,-194.89,0.00033897,120]
[314134279,1708016877941,-1578.67813327,0.00033897,2]
[314134280,1708016878293,-466.82186673,0.00033897,2]
[314134281,1708016878316,-1533.17813327,0.00033904,2]
[314134282,1708016878842,-2000.0,0.00033904,2]
[314134283,1708016879083,-2000.0,0.00033904,2]
[314134284,1708016879616,-2000.0,0.00033904,2]
[314134285,1708016881164,-2000.0,0.00033904,2]
[314134286,1708016881637,-2000.0,0.00033904,2]
[314134287,1708016882065,-1944.72186673,0.00033904,2]
[314134288,1708016928749,55.27813327,0.00033903,2]
[314134289,1708016928770,609.67186673,0.00033903,2]
[314134290,1708016941562,200.0,0.00033903,2]
[314134295,1708017021522,-224.37,0.00033915,2]
[314134296,1708017021548,-1264.0141,0.00033932,2]
[314134297,1708017021877,-150.0,0.00033968,3]
[314134298,1708017021921,-23900.0,0.0003397,2]
[314134299,1708017021944,-150.0,0.00033983,2]
[314134300,1708017021973,-250.0,0.00033997,2]
[314134301,1708017021996,-250.0,0.00034003,111]
[314134302,1708017022019,-182.37,0.00034008,2]
[314134303,1708017022041,-1415.70000022,0.00034021,7]
[314134304,1708017022064,-7497.44,0.00034032,2]
[314134305,1708017022086,-2184.34,0.00034032,2]
[314134306,1708017022108,-500.0,0.00034061,2]
[314134307,1708017022130,-200.0,0.00034085,2]
[314134308,1708017022155,-168.87902183,0.00034097,2]
[314134309,1708017022179,-150.0,0.00034171,2]
[314134310,1708017022205,-1718.06294946,0.00034179,10]
[314134311,1708017022233,-1989.48347999,0.00034197,10]
[314134312,1708017022258,-7180.10675746,0.00034215,10]
[314134313,1708017022282,-163.3,0.00034252,2]
[314134314,1708017022305,-1258.45,0.00034294,2]
[314134315,1708017022327,-165.19,0.00034326,2]
[314134316,1708017022349,-182.62,0.0003436,2]
[314134317,1708017022371,-651.12,0.0003438,2]
[314134318,1708017022395,-320.26,0.00034392,2]
[314134319,1708017022416,-200.0,0.00034404,2]
[314134320,1708017022438,-679.74,0.00034424,2]
[314134321,1708017022463,-667.56,0.00034424,2]
[314134322,1708017022485,-3296.86,0.00034424,2]
[314134323,1708017022507,-643.49,0.00034521,2]
[314134324,1708017022528,-2000.0,0.00034577,2]
[314134325,1708017022551,-499.99,0.00034577,2]
[314134326,1708017022574,-182.37,0.00034597,2]
[314134327,1708017022599,-163.3,0.00034699,2]
[314134328,1708017022624,-3644.21,0.00034763,5]
[314134329,1708017022646,-4443.40532558,0.00035,30]
[314134339,1708017032147,-307.04051277,0.00035,2]
[314134340,1708017032157,-6.08878832,0.0003509,2]
[314134341,1708017032206,-19242.24420889,0.0003509,2]
[314134342,1708017032216,-163.3,0.00035145,2]
[314134343,1708017032227,-182.37,0.00035186,2]
[314134344,1708017032237,-200.0,0.00035487,2]
[314134345,1708017032246,-1106.892,0.00035487,2]
[314134346,1708017032255,-163.3,0.00035591,2]
[314134347,1708017032265,-205.0,0.0003561,2]
[314134348,1708017032274,-232.24,0.00035626,2]
[314134349,1708017032283,-182.37,0.00035776,2]
[314134350,1708017032292,-643.49,0.00035798,2]
[314134351,1708017032302,-417.1433,0.000359,2]
[314134352,1708017032311,-1258.45,0.00035938,2]
[314134353,1708017032320,-168.87902183,0.00035999,2]
[314134354,1708017032330,-33984.61152867,0.00036,10]
[314134355,1708017032341,-17954.63498429,0.00036,10]
[314134356,1708017032353,-3082.14472906,0.00036,10]
[314134357,1708017032374,-12270.73130342,0.00036,10]
[314134358,1708017032383,-2960.29855343,0.00036,30]
[314134359,1708017032396,-992.45391194,0.00036,30]
[314134360,1708017032407,-33505.00407425,0.00036,30]
[314134361,1708017032418,-3210.2060775,0.00036,30]
[314134362,1708017032434,-302.6740637,0.00036,30]
[314134364,1708017032449,-5267.53670381,0.00036,30]
[314134366,1708017032459,-163.3,0.00036037,2]
[314134368,1708017032470,-182.62,0.00036078,2]
[314134370,1708017032480,-199.0,0.0003623,2]
[314134372,1708017032490,-228.53937651,0.00036373,3]
[314134374,1708017032499,-346.37594947,0.00036373,3]
[314134376,1708017032509,-182.2376275,0.00036373,3]
[314134378,1708017032519,-543.67,0.00036484,2]
[314134380,1708017032528,-651.12,0.00036644,2]
[314134382,1708017032537,-543.67,0.00036676,2]
[314134384,1708017032546,-165.8,0.00036778,2]
[314134386,1708017032556,-543.67,0.00036868,2]
[314134388,1708017032565,-1130.92130724,0.000369,8]
[314134390,1708017032575,-177.34,0.000369,2]
[314134392,1708017032585,-500.0,0.000369,2]
[314134394,1708017032594,-954.0,0.0003692,2]
[314134396,1708017032603,-6557.92233537,0.0003699,10]
[314134398,1708017032612,-2185.97411179,0.0003699,10]
[314134400,1708017032622,-4001.66651115,0.00036997,2]
[314134402,1708017032631,-100000.0,0.00037,7]
[314134404,1708017032640,-158248.62798486,0.00037,3]
[314134406,1708017032650,-1500.0,0.00037,2]
[314134408,1708017032659,-1000.0,0.00037,37]
[314134410,1708017032668,-500.0,0.00037,2]
[314134411,1708017032678,-32974.40739945,0.00037,2]
[314134414,1708017038158,-13458.4474,0.000359,2]
[314134415,1708017038168,-594915.00887081,0.00037,2]
[314134416,1708017038180,-156508.63955086,0.00037,2]
[314134417,1708017038222,-21086.34590081,0.00037,2]
[314134418,1708017038273,-82789.51113833,0.00037,2]
[314134419,1708017038331,-992.55515677,0.00037,2]
[314134421,1708017040673,-4441.72864517,0.00037,2]
[314134422,1708017040737,-28199.6605921,0.00037,2]
[314134423,1708017041568,-1768.45637484,0.00037,2]
[314134424,1708017041581,-1544.42,0.00037,2]
[314134425,1708017041596,-625402.52274437,0.00037,2]
[314134426,1708017041626,-60519.28607034,0.00037,2]
[314134427,1708017041636,-4371.94822358,0.00037035,10]
[314134428,1708017041645,-543.67,0.0003706,2]
[314134429,1708017041654,-643.49,0.00037075,2]
[314134430,1708017041664,-543.67,0.00037252,2]
[314134431,1708017041673,-1130.92130724,0.00037275,8]
[314134432,1708017041683,-210.0,0.00037365,3]
[314134433,1708017041696,-232.24,0.00037407,2]
[314134434,1708017041706,-2185.97411179,0.00037434,10]
[314134435,1708017041715,-543.67,0.00037444,2]
[314134436,1708017041725,-177.34,0.00037448,2]
[314134437,1708017041735,-6557.92233537,0.0003745,10]
[314134438,1708017041744,-21037.0806,0.0003746,2]
[314134439,1708017041754,-2185.97411179,0.0003749,10]
[314134440,1708017041764,-1326.20619331,0.000375,5]
[314134441,1708017041773,-1258.45,0.00037582,2]
[314134442,1708017041782,-4371.94822358,0.0003759,10]
[314134443,1708017041791,-263.11191782,0.00037597,2]
[314134444,1708017041801,-6956.2157,0.000376,2]
[314134445,1708017041810,-2869.58742319,0.000376,2]
[314134446,1708017041819,-180.47727742,0.000376,7]
[314134447,1708017041829,-543.67,0.00037636,2]
[314134448,1708017041839,-4371.94822358,0.00037638,10]
[314134449,1708017041848,-4337.64862068,0.00037645,2]
[314134450,1708017041859,-152.85463446,0.00037645,2]
[314134451,1708017041869,-4416.78649294,0.00037645,10]
[314134452,1708017041879,-1130.92130724,0.0003765,8]
[314134453,1708017041890,-36663.98722567,0.0003769,10]
[314134454,1708017041902,-4869.52089833,0.0003769,10]
[314134455,1708017041912,-361.4815,0.000377,2]
[314134456,1708017041921,-115436.79302229,0.000377,3]
[314134463,1708017043096,-608.26990253,0.000377,3]
[314134464,1708017043222,-289.10785544,0.00036999,15]
[314134465,1708017043232,-2428.38434578,0.000377,3]
[314134466,1708017043244,-19891.8136081,0.000377,3]
[314134467,1708017043255,-6457.62419177,0.000377,3]
[314134468,1708017043375,-5930.25417629,0.000377,3]
[314134469,1708017043387,-5962.71800518,0.000377,3]
[314134480,1708017046886,-648.91636192,0.000377,3]
[314134481,1708017046932,-507342.9262672,0.000377,3]
[314134482,1708017046941,-151.0,0.00037745,120]
[314134483,1708017046951,-500.0,0.0003779,2]
[314134484,1708017046960,-182.62,0.00037796,2]
[314134485,1708017046969,-393.27,0.00037798,2]
[314134486,1708017046978,-4416.78649288,0.00037816,11]
[314134487,1708017046987,-205.0,0.00037827,7]
[314134488,1708017046996,-543.67,0.00037828,2]
[314134489,1708017047007,-152.69,0.00037844,2]
[314134490,1708017047017,-250.0,0.0003788,2]
[314134491,1708017047026,-151.83299161,0.0003788,2]
[314134492,1708017047036,-150.0,0.0003788,2]
[314134493,1708017047047,-151.2350683,0.0003788,2]
[314134494,1708017047056,-5000.0,0.000379,3]
[314134495,1708017047066,-168.87902183,0.000379,2]
[314134496,1708017047076,-153.84,0.000379,3]
[314134497,1708017047086,-153.84,0.000379,3]
[314134498,1708017047095,-153.84,0.000379,3]
[314134499,1708017047104,-138427.56396965,0.000379,3]
[314134500,1708017047125,-907.23067622,0.000379,3]
[314134502,1708017047184,-79442.64599995,0.000379,3]
[314134505,1708017047199,-422340.13638918,0.000379,3]
[314134506,1708017047208,-1767.6,0.000379,3]
[314134507,1708017047217,-1767.6,0.000379,3]
[314134508,1708017047226,-1767.6,0.000379,3]
[314134509,1708017047237,-1767.6,0.000379,3]
[314134510,1708017047246,-1767.6,0.000379,3]
[314134511,1708017047256,-1767.6,0.000379,3]
[314134512,1708017047266,-1767.6,0.000379,3]
[314134514,1708017047275,-1767.6,0.000379,3]
[314134516,1708017047284,-1767.6,0.000379,3]
[314134518,1708017047294,-1767.6,0.000379,3]
[314134520,1708017047303,-1767.6,0.000379,3]
[314134521,1708017047312,-1767.6,0.000379,3]
[314134523,1708017047321,-1767.6,0.000379,3]
[314134525,1708017047330,-1767.6,0.000379,3]
[314134527,1708017047339,-1767.6,0.000379,3]
[314134530,1708017047348,-1767.6,0.000379,3]
[314134532,1708017047357,-1767.6,0.000379,3]
[314134533,1708017047366,-1767.6,0.000379,3]
[314134536,1708017047376,-1767.6,0.000379,3]
[314134538,1708017047385,-1767.6,0.000379,3]
[314134539,1708017047394,-150.0,0.00037912,2]
[314134541,1708017047403,-2926.0,0.00037912,2]
[314134543,1708017047412,-2970.497,0.00037912,2]
[314134544,1708017047422,-8162.0,0.00037912,2]
[314134545,1708017047432,-1715.36224582,0.00037912,2]
[314134546,1708017047444,-1303.12237507,0.00037912,2]
[314134547,1708017047460,-359.00939672,0.00037912,2]
[314134548,1708017049026,500.0,0.000359,2]
[314134549,1708017051479,217.52444167,0.00036935,2]
[314134550,1708017068743,-210.0,0.0003561,2]
[314134551,1708017068766,-100000.0,0.000359,2]
[314134552,1708017069663,5701.58714908,0.00034215,10]
[314134553,1708017077219,-111994.6084,0.000359,2]
[314134554,1708017078386,701.2500694,0.00035899,2]
[314134558,1708017189708,200.0,0.00033903,2]
[314134559,1708017222437,990.32813327,0.00033903,2]
[314134560,1708017222457,2000.0,0.00033903,2]
[314134561,1708017222478,1999.67186673,0.00033903,2]
[314134564,1708017339193,0.32813327,0.0003,2]
[314134565,1708017339215,156508.31141759,0.0003,2]
[314134566,1708017404011,6085.51727668,0.0003,3]
[314134567,1708017627520,500000.0,0.00033,120]
[314134568,1708017645910,350.0,0.00025,3]
[314134569,1708017647064,400.0,0.00027,3]
[314134570,1708017654330,155.0,0.00030281,2]
[314134571,1708017654631,155.0,0.00029596,2]
[314134572,1708017654879,155.0,0.00028911,2]
[314134573,1708017655117,155.0,0.00028226,2]
[314134574,1708017655357,155.0,0.00027541,2]
[314134575,1708017701930,772.31013521,0.0003,120]
[314134576,1708017701954,99227.68986479,0.0003,120]
[314134577,1708017703046,151.0,0.00030096,2]
[314134578,1708018044277,-151.0,0.00030781,2]
[314134579,1708018044323,-151.0,0.00031466,2]
[314134580,1708018044350,-151.0,0.00032151,2]
[314134581,1708018106007,151.0,0.00030196,2]
[314134582,1708018106165,151.0,0.00029511,2]
[314134583,1708018106506,151.0,0.00028826,2]
[314134584,1708018171149,-151.0,0.00030881,2]
[314134585,1708018171171,-151.0,0.00031566,2]
[314134586,1708018171192,-500.04214649,0.00032058,2]
[314134589,1708018232274,-166.51785351,0.00032058,2]
[314134590,1708018232285,-151.0,0.00032251,2]
[314134591,1708018232295,-151.0,0.00032936,2]
[314134592,1708018232305,-150.0,0.00032999,2]
[314134593,1708018232315,-2619.07541006,0.00033,120]
[314134594,1708018232329,-1324.31822645,0.00033,120]
[314134617,1708018232951,-596056.60636349,0.00033,120]
[314134620,1708018232962,-151.0,0.00033621,2]
[314134622,1708018232972,-2000.0,0.00033813,2]
[314134624,1708018232982,-23900.0,0.00033813,2]
[314134626,1708018232993,-200.0,0.00033828,2]
[314134627,1708018233002,-332.47,0.00033846,2]
[314134628,1708018233013,-500.0,0.0003386,2]
[314134629,1708018233023,-194.96,0.00033911,10]
[314134630,1708018233035,-150.0,0.00033927,2]
[314134631,1708018233045,-200.0,0.00033932,2]
[314134632,1708018233059,-378.88,0.00033932,2]
[314134633,1708018233070,-250.0,0.00033933,111]
[314134634,1708018233080,-500.0,0.00033957,2]
[314134635,1708018233089,-543.8,0.00034017,2]
[314134636,1708018233101,-2560.3644685,0.00034021,7]
[314134637,1708018233111,-556.3,0.00034039,2]
[314134638,1708018233124,-150.0,0.00034044,2]
[314134639,1708018233135,-1423.77,0.00034145,2]
[314134640,1708018233145,-500.0,0.0003417,2]
[314134641,1708018233155,-250.0,0.00034173,2]
[314134642,1708018233165,-8131.48775436,0.00034179,10]
[314134643,1708018233176,-406.57438772,0.00034179,10]
[314134644,1708018233186,-1058.20768471,0.00034243,10]
[314134645,1708018233196,-152.1,0.00034266,2]
[314134646,1708018233207,-151.0,0.00034305,2]
[314134647,1708018233219,-666.56,0.00034322,2]
[314134648,1708018233232,-3787.204272,0.0003452,2]
[314134649,1708018233242,-257.39,0.00034521,2]
[314134650,1708018233251,-3668.44,0.00034535,5]
[314134651,1708018233262,-5680.806408,0.00034794,2]
[314134652,1708018233272,-3685.53,0.00034893,5]
[314134653,1708018233284,-7574.408544,0.00034931,2]
[314134654,1708018233295,-499.99,0.00034931,2]
[314134655,1708018233304,-151.0,0.0003499,2]
[314134656,1708018233317,-5007.58614108,0.00035,4]
[314134657,1708018233330,-288.56,0.00035029,2]
[314134658,1708018233342,-9468.010681,0.00035068,2]
[314134659,1708018233351,-184.70027688,0.00035339,2]
[314134660,1708018233363,-13255.214953,0.00035342,2]
[314134661,1708018233374,-300.0,0.00035407,2]
[314134662,1708018233384,-3548.45,0.00035522,5]
[314134663,1708018233394,-20912.729,0.00035542,2]
[314134664,1708018233403,-456.2,0.00035628,2]
[314134666,1708018233412,-151.0,0.00035675,7]
[314134667,1708018233422,-3172.33,0.00035682,2]
[314134668,1708018233431,-2024.28673521,0.00035701,2]
[314134669,1708018233441,-1423.77,0.00035789,2]
[314134670,1708018233450,-257.39,0.00035798,2]
[314134671,1708018233459,-25089.93795282,0.000358,2]
[314134672,1708018233468,-152.0,0.00035801,3]
[314134673,1708018233478,-155.6658,0.000359,2]
[314134674,1708018233488,-9211.589,0.000359,2]
[314134675,1708018233497,-2466.0,0.000359,3]
[314134676,1708018233506,-193.80161089,0.000359,2]
[314134677,1708018233518,-790.07660071,0.000359,7]
[314134678,1708018233527,-2726.10805204,0.000359,2]
[314134679,1708018233537,-2500.0,0.000359,2]
[314134680,1708018233547,-566.11878016,0.000359,2]
[314134681,1708018233557,-15148.817089,0.00036,2]
[314134682,1708018233566,-500.0,0.00036,4]
[314134683,1708018233576,-198.0,0.0003623,2]
[314134684,1708018233586,-2024.2867352,0.00036278,2]
[314134685,1708018233595,-210.0,0.00036299,2]
[314134686,1708018233604,-151.0,0.0003636,7]
[314134687,1708018233613,-25089.93795281,0.00036377,2]
[314134688,1708018233623,-790.07660069,0.00036413,7]
[314134689,1708018233633,-208.94748077,0.00036471,3]
[314134690,1708018233642,-226.58018693,0.00036488,3]
[314134691,1708018233652,-792.83262948,0.00036504,3]
[314134692,1708018233661,-373.89815037,0.00036504,3]
[314134693,1708018233671,-186.94907518,0.00036504,3]
[314134694,1708018233680,-196.73213222,0.00036504,4]
[314134695,1708018233690,-3660.26,0.00036572,5]
[314134696,1708018233699,-666.56,0.00036586,2]
[314134697,1708018233709,-300.0,0.00036777,2]
[314134698,1708018233720,-288.56,0.00036781,2]
[314134699,1708018233733,-167.15,0.00036796,2]
[314134700,1708018233743,-185.3776133,0.00036815,2]
[314134701,1708018233754,-2024.2867352,0.00036855,2]
[314134702,1708018233764,-1315.40695577,0.00036891,2]
[314134703,1708018233774,-1000.0,0.000369,2]
[314134704,1708018233783,-4231.9044,0.000369,2]
[314134705,1708018233793,-790.07660069,0.00036926,8]
[314134706,1708018233802,-25089.93795281,0.00036954,2]
[314134707,1708018233811,-71002.51,0.00037,30]
[314134708,1708018233821,-205.0,0.00037044,2]
[314134709,1708018233830,-151.0,0.00037045,7]
[314134710,1708018233839,-257.39,0.00037075,2]
[314134711,1708018233849,-193.80161087,0.00037078,2]
[314134712,1708018233861,-151.0,0.00037213,120]
[314134713,1708018233870,-627.02,0.00037223,2]
[314134714,1708018233881,-1315.40695577,0.00037258,2]
[314134715,1708018233891,-152.69,0.00037394,2]
[314134716,1708018233900,-2024.2867352,0.00037432,2]
[314134717,1708018233910,-1423.77,0.00037433,2]
[314134718,1708018233919,-790.07660069,0.00037439,8]
[314134719,1708018233929,-2726.108052,0.00037479,2]
[314134720,1708018233939,-1315.40695577,0.00037498,2]
[314134721,1708018233948,-25089.93795281,0.00037532,2]
[314134722,1708018233958,-236.95621328,0.0003754,2]
[314134723,1708018233969,-250.0,0.00037545,2]
[314134724,1708018233980,-174.18,0.00037545,2]
[314134725,1708018233989,-200.0,0.00037545,2]
[314134726,1708018233999,-165.19,0.00037545,2]
[314134727,1708018234008,-800.0,0.00037609,5]
[314134728,1708018234017,-250.0,0.00037638,2]
[314134729,1708018234027,-155.0,0.0003767,7]
[314134730,1708018234038,-152.85463446,0.00037715,2]
[314134731,1708018234050,-151.0,0.0003773,7]
[314134732,1708018234066,-200.0,0.00037787,10]
[314134733,1708018234075,-1355.68358968,0.00037788,2]
[314134734,1708018234085,-5000.0,0.000378,3]
[314134735,1708018234320,-303.02614352,0.000378,2]
[314134736,1708018234332,-1815.59487117,0.000378,2]
[314134737,1708018234342,-1518.94101483,0.000378,2]
[314134738,1708018234353,-2511.67035036,0.000378,2]
[314134739,1708018234362,-1315.40695577,0.00037806,2]
[314134740,1708018234371,-867.15,0.00037814,2]
[314134741,1708018234381,-1059.85,0.00037814,2]
[314134742,1708018234391,-62087.02073359,0.00037815,10]
[314134743,1708018234400,-1504.16246381,0.0003784,10]
[314134744,1708018234411,-200.0,0.00037842,5]
[314134745,1708018234422,-184.70027688,0.00037899,2]
[314134746,1708018234432,-202771.15686849,0.000379,2]
[314134747,1708018234449,-7155.98314794,0.000379,2]
[314134748,1708018234462,-35072.85998357,0.000379,2]
[314134749,1708018234473,-153.85,0.000379,3]
[314134750,1708018234484,-153.85,0.000379,3]
[314134751,1708018234495,-31747.81951307,0.000379,3]
[314134752,1708018234545,-1043.86,0.000379,3]
[314134753,1708018234578,-1506.50744281,0.000379,3]
[314134754,1708018234591,-358.85125374,0.000379,3]
[314134755,1708018234603,-270.29095374,0.000379,3]
[314134756,1708018234616,-10407.57571551,0.000379,3]
[314134757,1708018234628,-423.1,0.000379,3]
[314134760,1708018238300,-575.58435544,0.00037815,3]
[314134761,1708018238312,-1267.65875993,0.00037815,3]
[314134762,1708018238323,-603.45575644,0.00037815,3]
[314134763,1708018238364,-384886.79060033,0.00037815,3]
[314134764,1708018238422,-44431.57269694,0.00037815,3]
[314134765,1708018238432,-510886.76483813,0.000379,3]
[314134766,1708018238441,-919.92911396,0.000379,28]
[314134767,1708018238451,-1159.81,0.000379,3]
[314134768,1708018238460,-1159.81,0.000379,3]
[314134769,1708018238470,-1159.81,0.000379,3]
[314134770,1708018238480,-1159.81,0.000379,3]
[314134771,1708018238490,-1159.81,0.000379,3]
[314134772,1708018238499,-1159.81,0.000379,3]
[314134773,1708018238508,-1159.81,0.000379,3]
[314134774,1708018238518,-1159.81,0.000379,3]
[314134775,1708018238527,-1159.81,0.000379,3]
[314134776,1708018238536,-1159.81,0.000379,3]
[314134777,1708018238546,-1159.81,0.000379,3]
[314134778,1708018238555,-1159.81,0.000379,3]
[314134779,1708018238564,-1159.81,0.000379,3]
[314134780,1708018238573,-1159.81,0.000379,3]
[314134781,1708018238582,-1159.81,0.000379,3]
[314134782,1708018238592,-1159.81,0.000379,3]
[314134783,1708018238601,-1159.81,0.000379,3]
[314134784,1708018238610,-1159.81,0.000379,3]
[314134785,1708018238620,-1159.81,0.000379,3]
[314134786,1708018238629,-1159.81,0.000379,3]
[314134787,1708018238638,-92774.1282861,0.00037902,3]
[314134788,1708018238647,-258.40996822,0.00037912,2]
[314134789,1708018238657,-2000.0,0.00037912,2]
[314134790,1708018238666,-200.0,0.00037912,2]
[314134791,1708018238675,-2000.0,0.00037912,2]
[314134792,1708018238684,-200.0,0.00037912,2]
[314134793,1708018238694,-2000.0,0.00037912,2]
[314134794,1708018238703,-200.0,0.00037912,2]
[314134795,1708018238712,-3000.0,0.00037912,2]
[314134796,1708018238722,-200.0,0.00037912,2]
[314134797,1708018238731,-790.07660069,0.00037951,8]
[314134798,1708018238740,-200.0,0.00037965,3]
[314134799,1708018238749,-800.0,0.00037965,5]
[314134800,1708018238758,-200.0,0.00037965,10]
[314134801,1708018238768,-500.0,0.00037965,10]